{"text_format":"1","workbook":"xlsx","n_sheets":15,"sheets":["様式目次","第1号様式","第1号様式別紙1(所要額調書、対象経費内訳) ","第1号様式別紙2","Sheet3","第1号様式別紙2（事業計画書 後発タイプ）","第2号様式","第2号様式別紙1","第2号様式別紙2","第2号様式別紙2（後発タイプ）","第3号様式","第4号様式","第4号様式別紙1","第4号様式別紙2","第4号様式別紙2 (後発タイプ)"],"not_rendered":{"charts":0,"images":0,"macros":0,"external_links":0,"defined_names":13,"comments":0,"pivot_tables":0},"unopened":[],"bounds":{"document_bytes":16777216,"sheet_cells":100000,"rows_first":2000,"rows_last":500,"rows_between":2000,"halvings":0,"cell_chars":16384,"cell_head_chars":4096},"cells_cut":0,"cells_raw":0,"read":"whole","date_system":"1900"}

{"sheet":"様式目次","index":0,"n_rows":2,"n_cols":11,"rows_kept":2,"cut":false,"hidden":true,"merged":[]}
["事業名","第１号様式","別紙1","別紙2","第２号様式","別紙１","別紙２","第３号様式","第４号様式","別紙１","別紙２"]
["医療情報システムのクラウド化に伴う検討事業","第1号様式","別紙1","Aタイプ","第２号様式","別紙１","Aタイプ","第３号様式","第４号様式","別紙１","Aタイプ"]

{"sheet":"第1号様式","index":1,"n_rows":33,"n_cols":10,"rows_kept":33,"cut":false,"hidden":false,"merged":[[10,0,10,6]]}
["第１号様式"]
[null,null,null,null,null,null,"番　　　　　　　　　号",null,null,"医療情報システムのクラウド化に伴う検討事業"]
[null,null,null,null,null,null,"　　年　　月　　日"]
[]
["厚生労働大臣　殿"]
[null,null,null,null,"所在地"]
[null,null,null,null,"事業者名"]
[null,null,null,null,"代表者氏名"]
[null,null,null,null,"医療機関コード（10桁）"]
[]
["令和８年度（令和７年度からの繰越分）地域診療情報連携推進費補助金（変更）交付申請書"]
[]
[]
["標記について、次のとおり交付されるよう関係書類を添えて申請する。"]
[]
["１　補助金申請額　　　　金　　　　　　　　　　　　　円"]
[]
["２　所要額調書（別紙１）"]
[]
["３　事業計画書（別紙２）"]
[]
["４　添付書類"]
["　　収入支出予算書抄本"]
["　　見積り書"]
["    直近決算年度の財務諸表又は確定申告書（法人化していない場合）"]
[]
["５　変更申請の場合は、１に関わらず次のとおりとする。"]
["　　申請額　　　　　　　　金　　　　　　　　　　　　円　(A)"]
[]
["　　前回までの交付決定額　金　　　　　　　　　　　　円　(B)"]
[]
["　　差引今回変更増減額　　金　　　　　　　　　　　　円　(A)－(B)"]
[" "]

{"sheet":"第1号様式別紙1(所要額調書、対象経費内訳) ","index":2,"n_rows":40,"n_cols":15,"rows_kept":40,"cut":false,"hidden":false,"merged":[[32,3,32,4],[33,3,33,4],[34,3,34,4],[13,6,13,14],[15,6,26,14]]}
[]
[]
[null,null,null,"別紙１"]
[null,null,null,"所要額調書"]
[]
[]
[null,null,null,{"$f":"CONCATENATE(1,\"　\",第1号様式!$J$2,\"所要額\")","v":"1　医療情報システムのクラウド化に伴う検討事業所要額"}]
[null,null,null,"総事業費","寄附金その\n他の収入額","差引額","対象経費の\n支出予定額","基準額","選定額","国庫補助\n基本額","国庫補助\n所要額","仕入れに係る\n消費税等相当額","要国庫補助額","交付\n決定額","差引追加交付\n（一部取消）\n申請額"]
[null,null,null,"Ａ","Ｂ","Ｃ（Ａ－Ｂ）","Ｄ","Ｅ","Ｆ","Ｇ","Ｈ","Ｉ","Ｊ（Ｈ－Ｉ）","Ｋ※","Ｌ※"]
[null,null,null,"円 ","円 ","円 ","円 ","円 ","円 ","円 ","円 ","円 ","円 ","円 ","円 "]
[null,null,null,null,0,{"$f":"D11-E11","v":0},{"$f":"F28","v":0},null,{"$f":"MIN(G11,H11)","v":0},{"$f":"MIN(F11,I11)","v":0},{"$f":"ROUNDDOWN(J11*4/5,-3)","v":0},null,{"$f":"K11-L11","v":0}]
[]
[null,null,null,"２　対象経費の支出予定額算出内訳"]
[null,null,null,"区分",null,"支出予定額","算出内訳"]
[null,null,null,null,null,"円"]
[]
[]
[]
[]
[]
[]
[]
[]
[]
[]
[]
[]
[null,null,null,"合　　　　　計",null,{"$f":"SUM(F16:F27)","v":0}]
[]
[null,null,null,"（参考）対象外経費の支出予定額算出内訳"]
[null,null,null,"区　　　　　　分",null,"支出予定額"]
[null,null,null,null,null,"円 "]
[]
[]
[]
[null,null,null,"合　　　　　計",null,{"$f":"SUM(F33:F35)","v":0},null,null,null,{"$f":"SUM(J35:J35)","v":0}]
[]
[null,null,null,"総事業費",null,{"$f":"F28+F36","v":0}]
[]
[null,null,null,"※K欄及びL欄については、交付要綱の８による変更交付申請手続の他は斜線を引くこと。"]

{"sheet":"第1号様式別紙2","index":3,"n_rows":56,"n_cols":15,"rows_kept":56,"cut":false,"hidden":false,"merged":[[19,2,20,14],[29,2,30,14],[3,2,3,14],[8,2,8,4],[8,5,8,8],[8,9,8,14],[9,2,9,4],[9,5,9,8],[9,9,9,14],[14,2,15,14]]}
[]
[]
[null,null,"別紙２"]
[null,null,"医療情報システムのクラウド化に伴う検討事業　事業計画書"]
[]
[]
[]
[]
[null,null,"施設名",null,null,"開設者",null,null,null,"所在地"]
[]
[]
[]
[null,null,"１．クラウドネイティブ型電子カルテシステムの導入の目的を記載ください（記載欄が足りない場合は別紙に記載ください。）。"]
[]
[]
[]
[]
[null,null,"２．クラウドネイティブ型電子カルテシステムの導入体制、資金計画を記載ください（別紙添付可）。更新の場合は現行のネットワーク図を別途添付ください。"]
[]
[]
[]
[]
[null,null,"３．クラウドネイティブ型電子カルテの導入スケジュールを記載ください（別紙添付可）。記載に当たっては、完了の予定期日を明記してください。"]
[]
[null,null,null,"4月","5月","6月","7月","8月","9月","10月","11月","12月","1月","2月","3月"]
[]
[]
[null,null,"４．クラウドネイティブ型電子カルテシステムの導入に当たり、成果を高めるための効率的な工夫等について記載ください（別紙添付可）。"]
[]
[]
[]
[]
[]
[null,null,"５．以下について該当する項目に☑ください。"]
[null,null,"　　　　クラウドネイティブ型電子カルテの導入又はクラウドネイティブ型電子カルテへの更新は初めてですか。"]
[]
[null,null,"　　　　クラウドネイティブ型電子カルテは新規導入（現行紙カルテ）ですか。それとも更新ですか。更新の場合は現行の電子カルテ製品名を記載ください。"]
[null,null,null,"新規導入",null,"更新",null,"（電子カルテ製品名：　　　　　　　　　　　　　　　　　　　　　　　　　　）"]
[]
[null,null,"　　　　実施要綱記載のクラウドネイティブ型電子カルテの定義について確認しましたか。"]
[null,null,"　　　　（要綱に定義されたクラウドネイティブ型電子カルテ以外の電子カルテは導入できません。）"]
[]
[null,null,"　　　　導入するクラウドネイティブ型電子カルテはＧＣＡＳガイドに記載されている「公共ＳａａＳの共通要件にかかる技術方針」のアーキテクチャ要件"]
[null,null,"　　　　3.10 アーキテクチャ要件を満たすシステム構成例のどの構成例を予定してますか（複数選択可）。また、利用予定のISMAPクラウドサービスを記載ください。"]
[]
[null,null,null,"構成例１",null,"構成例２",null,"構成例３",null,"構成例４",null,"構成例５",null,"その他"]
[null,null,null,"※その他の場合は別途構成例を添付ください。"]
[null,null,"(","ISMAPクラウドサービスの名称：　　　　　　　　　　　　　　　　　　　　　　　）"]
[]
[null,null,"　　　　厚生労働省が進める医療ＤＸ推進施策に対応する予定はありますか。"]
[]
[null,null,"　　　　調達やシステム導入過程において生じた課題や知見を他の病院が参照できるようにまとめ、厚生労働省に提出することに協力する予定がありますか。"]
[]
[null,null,"　　　　導入するクラウドネイティブ型電子カルテはノンカスタマイズを予定していますか。"]
[]
[null,null,"　　　　医療情報ネット（ナビイ）に登録していますか。"]

{"sheet":"Sheet3","index":4,"n_rows":11,"n_cols":5,"rows_kept":11,"cut":false,"hidden":true,"merged":[]}
[]
[]
[]
[null,"新設","６アミノペニシラン酸",null,"該当なし"]
[null,"改修","７アミノセファロスポラン酸",null,"鉄筋コンクリート造"]
[null,"新設・改修","バンコマイシン",null,"鉄骨造（鉄筋コンクリート造と同等の強度）"]
[null,null,"その他（）",null,"鉄骨造（ブロック造と同等の強度）"]
[null,null,null,null,"ブロック造"]
[null,null,null,null,"木造"]
[null,null,null,null,"プレハブ造"]
[null,null,null,null,"その他"]

{"sheet":"第1号様式別紙2（事業計画書 後発タイプ）","index":5,"n_rows":33,"n_cols":15,"rows_kept":33,"cut":false,"hidden":true,"merged":[[3,2,3,14],[8,2,8,4],[8,5,8,8],[8,9,8,14],[9,2,9,4],[9,5,9,8],[9,9,9,14],[25,2,26,14],[14,2,16,14],[19,3,19,14],[20,3,20,14],[21,3,21,14]]}
[]
[]
[null,null,"別紙２"]
[null,null,"後発医薬品産業構造改革支援事業　事業計画書"]
[]
[]
[]
[]
[null,null,"事業者の名称",null,null,"代表者",null,null,null,"所在地"]
[]
[]
[]
[null,null,"１．品目統合等の計画概要"]
[null,null,"１）企業間連携と品目統合等の方法"]
[]
[]
[]
[null,null,"※品目又は製造体制の統合のどちらの統合となるのかがわかるように記載すること、また、企業間の連携手法についても記載すること。"]
[null,null,"２）品目統合等を行う後発医薬品の概要"]
[null,null,"統合対象成分の概要"]
[null,null,"申請者の品目"]
[null,null,"統合対象品目"]
[null,null,"※統合対象品目が複数ある場合は全て記載すること。また品目名の後ろに（）で企業名を入れること。"]
[]
[null,null,"３）品目統合等による効果"]
[]
[]
[]
[null,null,"２．スケジュール"]
[]
[null,null,null,"4月","5月","6月","7月","8月","9月","10月","11月","12月","1月","2月","3月"]
[]
[null,null,"※調査計画、設備整備計画毎に作成すること。"]

{"sheet":"第2号様式","index":6,"n_rows":28,"n_cols":7,"rows_kept":28,"cut":false,"hidden":false,"merged":[[10,0,10,6]]}
["第２号様式"]
[null,null,null,null,null,null,"番　　　　　　　　　号"]
[null,null,null,null,null,null,"　　年　　月　　日"]
[]
["厚生労働大臣　殿"]
[null,null,null,null,"所在地"]
[null,null,null,null,"事業者名"]
[null,null,null,null,"代表者氏名"]
[null,null,null,null,"医療機関コード（10桁）"]
[]
["令和８年度（令和７年度からの繰越分）地域診療情報連携推進費補助金実績報告書"]
[]
[]
["標記について、次のとおり関係書類を添えて報告する。　　　　　　　"]
[]
["１　補助金精算額　　　　金　　　　　　　　　　　　　円"]
[]
["２　所要額精算書（別紙１）"]
[]
["３　実績報告書（別紙２）"]
[]
["４　添付書類"]
["　収入支出決算書抄本"]
["  契約書（写）"]
["　　請求書（写）、検収済み納品書（写）、支払の証跡が確認できるもの"]
[" 　 電子カルテシステム構成図（ネットワーク構成図、システム構成図等）"]
[" 　 備品内訳"]
["　　　補助金の交付を受ける口座情報"]

{"sheet":"第2号様式別紙1","index":7,"n_rows":38,"n_cols":16,"rows_kept":38,"cut":false,"hidden":false,"merged":[[34,3,34,4],[33,3,33,4],[32,3,32,4],[13,6,13,15],[15,6,26,15]]}
[]
[]
[null,null,null,"別紙１"]
[null,null,null,"所要額精算書"]
[]
[]
[null,null,null,{"$f":"CONCATENATE(1,\"　\",第1号様式!$J$2,\"所要精算額\")","v":"1　医療情報システムのクラウド化に伴う検討事業所要精算額"}]
[null,null,null,"総事業費","寄附金その\n他の収入額","差引額","対象経費の\n支出予定額","基準額","選定額","国庫補助\n基本額","国庫補助\n所要額","仕入れに係る\n消費税等相当額","要国庫補助額","交付\n決定額","国庫補助\n受入済額","差引過\n△不足額"]
[null,null,null,"Ａ","Ｂ","Ｃ（Ａ－Ｂ）","Ｄ","Ｅ","Ｆ","Ｇ","Ｈ","Ｉ","Ｊ（Ｈ－Ｉ）","Ｋ","Ｌ","Ｍ（Ｌ－Ｊ）"]
[null,null,null,"円 ","円 ","円 ","円 ","円 ","円 ","円 ","円 ","円 ","円 ","円 ",null,"円 "]
[null,null,null,null,0,{"$f":"D11-E11","v":0},{"$f":"F28","v":0},null,{"$f":"MIN(G11,H11)","v":0},{"$f":"MIN(F11,I11)","v":0},{"$f":"ROUNDDOWN(J11*4/5,-3)","v":0},null,{"$f":"K11-L11","v":0},null,null,{"$f":"O11-M11","v":0}]
[]
[null,null,null,"２　対象経費の支出済額算出内訳"]
[null,null,null,"区分",null,"支出済額","算出内訳"]
[null,null,null,null,null,"円"]
[]
[]
[]
[]
[]
[]
[]
[]
[]
[]
[]
[]
[null,null,null,"合　　　　　計",null,{"$f":"SUM(F16:F27)","v":0}]
[]
[null,null,null,"（参考）対象外経費の支出済額算出内訳"]
[null,null,null,"区　　　　　　分",null,"支出済額"]
[null,null,null,null,null,"円 "]
[]
[]
[]
[null,null,null,"合　　　　　計",null,{"$f":"SUM(F33:F35)","v":0},null,null,null,{"$f":"SUM(J35:J35)","v":0}]
[]
[null,null,null,"総事業費",null,{"$f":"F28+F36","v":0}]

{"sheet":"第2号様式別紙2","index":8,"n_rows":35,"n_cols":15,"rows_kept":35,"cut":false,"hidden":false,"merged":[[3,2,3,14],[8,2,8,4],[8,5,8,8],[8,9,8,14],[9,2,9,4],[9,5,9,8],[9,9,9,14]]}
[]
[]
[null,null,"別紙２"]
[null,null,{"$f":"CONCATENATE(第1号様式!$J$2,\"　実績報告書\")","v":"医療情報システムのクラウド化に伴う検討事業　実績報告書"}]
[]
[]
[]
[]
[null,null,"施設名",null,null,"開設者",null,null,null,"所在地"]
[]
[]
[]
[null,null,"１．導入したクラウドネイティブ型電子カルテは、ＧＣＡＳガイドに記載されている「公共ＳａａＳの共通要件にかかる技術方針」のアーキテクチャ要件"]
[null,null,"　3.10 アーキテクチャ要件を満たすシステム構成例のどの構成例に該当しますか。また、利用したISMAPクラウドサービスを記載ください。"]
[]
[null,null,null,"構成例１",null,"構成例２",null,"構成例３",null,"構成例４",null,"構成例５",null,"その他"]
[null,null,"(","ISMAPクラウドサービスの名称：　　　　　　　　　　　　　　　　　　　　　　　）"]
[]
[null,null,"２．導入したクラウドネイティブ型電子カルテは、医療機関の増減や業務量の変化に応じて、システム資源の拡張・縮小が容易に可能ですか。"]
[]
[null,null,null,"可能",null,"不可"]
[]
[null,null,"３．導入したクラウドネイティブ型電子カルテは、サーバのアプリケーションレベルでの自動復旧機能を備えていますか。"]
[]
[null,null,null,"備えている",null,"備えていない"]
[]
[null,null,"４．導入したクラウドネイティブ型電子カルテは、業務中でも業務を停止（データベースの更新その他サービスの質の維持向上のために必要な"]
[null,null,"　　サービスの提供の一時停止であって、その内容と事前連絡の方法が契約等で定められたものを除く。）させることなく、新機能の追加、既存"]
[null,null,"　　機能の修正、最新マスターの配布等が随時可能ですか。"]
[]
[null,null,null,"可能",null,"不可能"]
[]
[null,null,"５．クラウドネイティブ型電子カルテの導入実績を記載ください（別紙添付可）。記載に当たっては、完了日を明記してください。"]
[]
[null,null,null,"4月","5月","6月","7月","8月","9月","10月","11月","12月","1月","2月","3月"]

{"sheet":"第2号様式別紙2（後発タイプ）","index":9,"n_rows":33,"n_cols":15,"rows_kept":33,"cut":false,"hidden":true,"merged":[[25,2,26,14],[14,2,16,14],[19,3,19,14],[20,3,20,14],[3,2,3,14],[21,3,21,14],[8,2,8,4],[8,5,8,8],[8,9,8,14],[9,2,9,4],[9,5,9,8],[9,9,9,14]]}
[]
[]
[null,null,"別紙２"]
[null,null,"後発医薬品産業構造改革支援事業　実績報告書"]
[]
[]
[]
[]
[null,null,"事業者の名称",null,null,"代表者",null,null,null,"所在地"]
[]
[]
[]
[null,null,"１．品目統合等の計画概要"]
[null,null,"１）企業間連携と品目統合等の方法"]
[]
[]
[]
[null,null,"※品目又は製造体制の統合のどちらの統合となるのかがわかるように記載すること、また、企業間の連携手法についても記載すること。"]
[null,null,"２）品目統合等を行う後発医薬品の概要"]
[null,null,"統合対象成分の概要"]
[null,null,"申請者の品目"]
[null,null,"統合対象品目"]
[null,null,"※統合対象品目が複数ある場合は全て記載すること。また品目名の後ろに（）で企業名を入れること。"]
[]
[null,null,"３）品目統合等による効果"]
[]
[]
[]
[null,null,"２．スケジュール"]
[]
[null,null,null,"4月","5月","6月","7月","8月","9月","10月","11月","12月","1月","2月","3月"]
[]
[null,null,"※調査計画、設備整備計画毎に作成すること。"]

{"sheet":"第3号様式","index":10,"n_rows":28,"n_cols":10,"rows_kept":28,"cut":false,"hidden":false,"merged":[[13,0,15,9],[10,0,10,9],[11,0,11,9]]}
["第３号様式"]
[null,null,null,null,null,null,null,null,null,"番　　　　　　　　　号"]
[null,null,null,null,null,null,null,null,null,"　　年　　月　　日"]
[]
["厚生労働大臣　殿"]
[null,null,null,null,null,null,"所在地"]
[null,null,null,null,null,null,"事業者名"]
[null,null,null,null,null,null,"代表者氏名"]
[null,null,null,null,null,null,"医療機関コード（10桁）"]
[]
["令和８年度（令和７年度からの繰越分）地域診療情報連携推進費補助金"]
["消費税及び地方消費税に係る仕入控除税額報告書"]
[]
["　　　年　月　日厚生労働省発産情　　　第　号により交付決定があった令和７年度（令和６年度からの繰越分）医薬品安定供給支援補助金について、当該交付要綱６の（８）の規定に基づき、次のとおり報告する。"]
[]
[]
[]
["１　補助金等に係る予算の執行の適正化に関する法律（昭和30年法律第179号）"]
["　　第15条の規定による確定額又は事業実績報告による精算額"]
[null,null,null,null,null,null,"金　　　　　　　　円"]
[]
["２　消費税及び地方消費税の申告により確定した消費税及び地方消費税に係る"]
["　　仕入控除税額（要国庫補助金返還相当額）"]
[null,null,null,null,null,null,"金　　　　　　　　円"]
[]
["３　添付書類"]
["記載内容を確認するための書類（確定申告書の写し、課税売上割合等が把握できる資料、"]
["特定収入の割合を確認できる資料）を添付する。"]

{"sheet":"第4号様式","index":11,"n_rows":16,"n_cols":9,"rows_kept":16,"cut":false,"hidden":false,"merged":[[15,0,16,8],[12,0,12,8]]}
["第４号様式"]
[null,null,null,null,null,null,null,null,"番　　　　　　　　　号"]
[null,null,null,null,null,null,null,null,"　　年　　月　　日"]
[]
["厚生労働大臣　　殿"]
[null,null,null,null,null,null,"所在地"]
[null,null,null,null,null,null,"事業者名"]
[null,null,null,null,null,null,"代表者氏名"]
[null,null,null,null,null,null,"医療機関コード（10桁）"]
[]
[]
[]
["令和８年度（令和７年度からの繰越分）地域診療情報連携推進費補助金遂行状況報告書"]
[]
[]
["  標記について、補助金等に係る予算の執行の適正化に関する法律第１２条の規定により、別紙１、２のとおり報告する。"]

{"sheet":"第4号様式別紙1","index":12,"n_rows":32,"n_cols":4,"rows_kept":32,"cut":false,"hidden":false,"merged":[]}
[]
[]
[null,"別紙１"]
[]
[null,"遂行状況報告書"]
[]
[null,{"$f":"CONCATENATE(\"（\",第1号様式!$J$2,\"）\")","v":"（医療情報システムのクラウド化に伴う検討事業）"}]
[null,"１　対象経費の支出済額算出内訳",null,"（　　年　　月　　日現在）"]
[null,"区分","支出済額","支出内訳"]
[null,null,"円 "]
[]
[]
[]
[]
[]
[]
[]
[]
[]
[]
[]
[null,"合　　　計",{"$f":"SUM(C15:C21)","v":0}]
[]
[null,"（参考）対象外経費の支出済額算出内訳"]
[null,"区分","支出済額"]
[null,null,"円 "]
[]
[]
[]
[null,"合　　　計",{"$f":"SUM(C27:C29)","v":0}]
[]
[null,"総事業費",{"$f":"SUM(C22,C30)","v":0}]

{"sheet":"第4号様式別紙2","index":13,"n_rows":23,"n_cols":15,"rows_kept":23,"cut":false,"hidden":false,"merged":[[14,2,17,14],[3,2,3,14],[8,2,8,4],[8,5,8,8],[8,9,8,14],[9,2,9,4],[9,5,9,8],[9,9,9,14]]}
[]
[]
[null,null,"別紙２"]
[null,null,{"$f":"CONCATENATE(第1号様式!$J$2,\"　遂行状況報告書\")","v":"医療情報システムのクラウド化に伴う検討事業　遂行状況報告書"}]
[]
[]
[]
[]
[null,null,"施設名",null,null,"開設者",null,null,null,"所在地"]
[]
[]
[]
[null,null,"１．事業計画・内容"]
[]
[]
[]
[]
[]
[]
[]
[null,null,"２．スケジュール"]
[]
[null,null,null,"4月","5月","6月","7月","8月","9月","10月","11月","12月","1月","2月","3月"]

{"sheet":"第4号様式別紙2 (後発タイプ)","index":14,"n_rows":33,"n_cols":15,"rows_kept":33,"cut":false,"hidden":true,"merged":[[25,2,26,14],[14,2,16,14],[19,3,19,14],[20,3,20,14],[3,2,3,14],[21,3,21,14],[8,2,8,4],[8,5,8,8],[8,9,8,14],[9,2,9,4],[9,5,9,8],[9,9,9,14]]}
[]
[]
[null,null,"別紙２"]
[null,null,"後発医薬品産業構造改革支援事業　遂行状況報告書"]
[]
[]
[]
[]
[null,null,"事業者の名称",null,null,"代表者",null,null,null,"所在地"]
[]
[]
[]
[null,null,"１．品目統合等の計画概要"]
[null,null,"１）企業間連携と品目統合等の方法"]
[]
[]
[]
[null,null,"※品目又は製造体制の統合のどちらの統合となるのかがわかるように記載すること、また、企業間の連携手法についても記載すること。"]
[null,null,"２）品目統合等を行う後発医薬品の概要"]
[null,null,"統合対象成分の概要"]
[null,null,"申請者の品目"]
[null,null,"統合対象品目"]
[null,null,"※統合対象品目が複数ある場合は全て記載すること。また品目名の後ろに（）で企業名を入れること。"]
[]
[null,null,"３）品目統合等による効果"]
[]
[]
[]
[null,null,"２．スケジュール"]
[]
[null,null,null,"4月","5月","6月","7月","8月","9月","10月","11月","12月","1月","2月","3月"]
[]
[null,null,"※調査計画、設備整備計画毎に作成すること。"]